[Event "*** Titled Tuesday Blitz"]
[Site "Chess.com"]
[Date "2020.11.10"]
[Round "4"]
[White "FrenchMonster2002"]
[Black "Matols"]
[Result "1-0"]
[WhiteElo "2449"]
[BlackElo "2261"]
[TimeControl "180+1"]
[EndTime "10:43:10 PST"]
[Termination "FrenchMonster2002 won on time"]

1. e4 {[%clk 0:03:00.9]} 1... e6 {[%clk 0:02:59.4]} 2. d4 {[%clk 0:02:59.5]}
2... d5 {[%clk 0:02:59.4]} 3. Nc3 {[%clk 0:03:00.2]} 3... Nf6 {[%clk 0:02:57.8]}
4. e5 {[%clk 0:03:00.1]} 4... Nfd7 {[%clk 0:02:58]} 5. f4 {[%clk 0:03:01]} 5...
c5 {[%clk 0:02:58.1]} 6. Nf3 {[%clk 0:03:01.7]} 6... Nc6 {[%clk 0:02:57.7]} 7.
Be3 {[%clk 0:03:02.4]} 7... cxd4 {[%clk 0:02:57.5]} 8. Nxd4 {[%clk 0:03:02.5]}
8... Bc5 {[%clk 0:02:58]} 9. Qd2 {[%clk 0:03:02.6]} 9... O-O {[%clk 0:02:57.9]}
10. O-O-O {[%clk 0:03:02.1]} 10... a6 {[%clk 0:02:57.9]} 11. Qf2 {[%clk
0:02:58.8]} 11... Nxd4 {[%clk 0:02:54.5]} 12. Bxd4 {[%clk 0:02:59]} 12... Qc7
{[%clk 0:02:54.4]} 13. h4 {[%clk 0:02:54.5]} 13... b5 {[%clk 0:02:53.9]} 14. Bd3
{[%clk 0:02:50.8]} 14... b4 {[%clk 0:02:53.3]} 15. Ne2 {[%clk 0:02:44]} 15... a5
{[%clk 0:02:52.3]} 16. h5 {[%clk 0:02:41.2]} 16... a4 {[%clk 0:02:51.5]} 17. Kb1
{[%clk 0:02:05.8]} 17... a3 {[%clk 0:02:43.7]} 18. b3 {[%clk 0:02:03]} 18... Ba6
{[%clk 0:02:42.5]} 19. Rh3 {[%clk 0:02:00.9]} 19... Rfc8 {[%clk 0:02:40.8]} 20.
h6 {[%clk 0:01:53]} 20... g6 {[%clk 0:02:39.9]} 21. Rc1 {[%clk 0:01:49]} 21...
Bxd4 {[%clk 0:02:33.7]} 22. Qxd4 {[%clk 0:01:49.9]} 22... Qc5 {[%clk 0:02:13]}
23. c3 {[%clk 0:01:34.8]} 23... Bxd3+ {[%clk 0:01:56.2]} 24. Rxd3 {[%clk
0:01:33.5]} 24... Qxd4 {[%clk 0:01:36.2]} 25. cxd4 {[%clk 0:01:04.8]} 25... Kf8
{[%clk 0:01:34.8]} 26. Rd2 {[%clk 0:00:54]} 26... Ke7 {[%clk 0:01:32.2]} 27.
Rdc2 {[%clk 0:00:53.1]} 27... Nb6 {[%clk 0:01:30.3]} 28. Rc5 {[%clk 0:00:47.1]}
28... f6 {[%clk 0:01:07.4]} 29. Rb5 {[%clk 0:00:32.1]} 29... Nd7 {[%clk
0:01:04.2]} 30. Rxb4 {[%clk 0:00:29.4]} 30... fxe5 {[%clk 0:01:02.7]} 31. fxe5
{[%clk 0:00:19.7]} 31... Rxc1+ {[%clk 0:01:00.7]} 32. Kxc1 {[%clk 0:00:16.7]}
32... Rf8 {[%clk 0:01:00.2]} 33. Ra4 {[%clk 0:00:17.1]} 33... Rf2 {[%clk
0:00:59.6]} 34. Kd2 {[%clk 0:00:15.6]} 34... Rxg2 {[%clk 0:00:57.8]} 35. Rxa3
{[%clk 0:00:15.9]} 35... g5 {[%clk 0:00:54.4]} 36. b4 {[%clk 0:00:09.7]} 36...
g4 {[%clk 0:00:53.9]} 37. Rg3 {[%clk 0:00:08.5]} 37... Rxg3 {[%clk 0:00:47.1]}
38. Nxg3 {[%clk 0:00:09.4]} 38... Kf7 {[%clk 0:00:43.4]} 39. a4 {[%clk
0:00:09.1]} 39... Kg6 {[%clk 0:00:43.4]} 40. a5 {[%clk 0:00:08.1]} 40... Kxh6
{[%clk 0:00:43]} 41. b5 {[%clk 0:00:08.5]} 41... Kg5 {[%clk 0:00:41.1]} 42. Ke3
{[%clk 0:00:08.8]} 42... h5 {[%clk 0:00:40.4]} 43. b6 {[%clk 0:00:07]} 43... Nb8
{[%clk 0:00:38.1]} 44. Ne2 {[%clk 0:00:02.7]} 44... h4 {[%clk 0:00:37.7]} 45.
Nf4 {[%clk 0:00:02.6]} 45... h3 {[%clk 0:00:33.9]} 46. Nxe6+ {[%clk 0:00:01.7]}
46... Kh4 {[%clk 0:00:33.9]} 47. Kf2 {[%clk 0:00:01.8]} 47... g3+ {[%clk
0:00:33.7]} 48. Kg1 {[%clk 0:00:02.5]} 48... Kg4 {[%clk 0:00:32.7]} 49. Nc5
{[%clk 0:00:01.6]} 49... Kf3 {[%clk 0:00:32]} 50. Nd3 {[%clk 0:00:01.5]} 50...
g2 {[%clk 0:00:05.4]} 51. Ne1+ {[%clk 0:00:01.4]} 51... Kg3 {[%clk 0:00:02.9]}
52. Nxg2 {[%clk 0:00:01.9]} 52... hxg2 {[%clk 0:00:01.8]} 53. e6 {[%clk
0:00:02.4]} 1-0

[Event "*** Titled Tuesday Blitz"]
[Site "Chess.com"]
[Date "2020.11.10"]
[Round "4"]
[White "gilbert_gm"]
[Black "Gabrielian_Artur"]
[Result "1-0"]
[WhiteElo "2557"]
[BlackElo "2776"]
[TimeControl "180+1"]
[EndTime "10:43:12 PST"]
[Termination "gilbert_gm won by resignation"]

1. d4 {[%clk 0:03:00.9]} 1... Nf6 {[%clk 0:02:59.4]} 2. Nf3 {[%clk 0:03:00.4]}
2... g6 {[%clk 0:02:58.3]} 3. Bf4 {[%clk 0:02:59.9]} 3... Bg7 {[%clk 0:02:58.1]}
4. e3 {[%clk 0:02:59.5]} 4... O-O {[%clk 0:02:58]} 5. h3 {[%clk 0:02:57.5]} 5...
d6 {[%clk 0:02:57.8]} 6. c3 {[%clk 0:02:55.9]} 6... b6 {[%clk 0:02:55.2]} 7.
Nbd2 {[%clk 0:02:54.8]} 7... Bb7 {[%clk 0:02:55.2]} 8. Bc4 {[%clk 0:02:49.9]}
8... Nbd7 {[%clk 0:02:47.4]} 9. O-O {[%clk 0:02:47.6]} 9... c5 {[%clk
0:02:41.9]} 10. a4 {[%clk 0:02:45.7]} 10... a6 {[%clk 0:02:41.4]} 11. Qb3 {[%clk
0:02:42.6]} 11... d5 {[%clk 0:02:21.2]} 12. Be2 {[%clk 0:02:40.2]} 12... e6
{[%clk 0:01:53.3]} 13. Ne5 {[%clk 0:02:34.2]} 13... Nxe5 {[%clk 0:01:52.4]} 14.
Bxe5 {[%clk 0:02:33.5]} 14... Nd7 {[%clk 0:01:44.6]} 15. Bxg7 {[%clk 0:02:34.4]}
15... Kxg7 {[%clk 0:01:44.5]} 16. Nf3 {[%clk 0:02:28.1]} 16... Qc7 {[%clk
0:01:41.7]} 17. Qa3 {[%clk 0:02:10]} 17... c4 {[%clk 0:01:22.5]} 18. Rfc1 {[%clk
0:01:49.3]} 18... b5 {[%clk 0:01:20.5]} 19. b4 {[%clk 0:01:40.3]} 19... Bc6
{[%clk 0:01:17.2]} 20. a5 {[%clk 0:01:27.6]} 20... Rae8 {[%clk 0:01:16]} 21. Qb2
{[%clk 0:01:14.9]} 21... f5 {[%clk 0:01:12]} 22. Qd2 {[%clk 0:01:14.7]} 22... h6
{[%clk 0:01:11.5]} 23. h4 {[%clk 0:01:08.1]} 23... Qd8 {[%clk 0:01:01.4]} 24. g3
{[%clk 0:01:02.1]} 24... Qc7 {[%clk 0:01:01.2]} 25. Kg2 {[%clk 0:00:58.6]} 25...
Rh8 {[%clk 0:00:52.2]} 26. Rh1 {[%clk 0:00:57.9]} 26... Reg8 {[%clk 0:00:51.6]}
27. Rag1 {[%clk 0:00:57.4]} 27... Kf6 {[%clk 0:00:47.2]} 28. Kf1 {[%clk
0:00:57.5]} 28... Qd8 {[%clk 0:00:45.6]} 29. g4 {[%clk 0:00:43.6]} 29... Ke7
{[%clk 0:00:44.4]} 30. Ne5 {[%clk 0:00:33.6]} 30... Nxe5 {[%clk 0:00:41.8]} 31.
dxe5 {[%clk 0:00:33.6]} 31... d4 {[%clk 0:00:34.2]} 32. exd4 {[%clk 0:00:27.6]}
32... Bxh1 {[%clk 0:00:33.4]} 33. Rxh1 {[%clk 0:00:28.5]} 33... Qd5 {[%clk
0:00:32]} 34. Rh3 {[%clk 0:00:26]} 34... fxg4 {[%clk 0:00:29.7]} 35. Bxg4 {[%clk
0:00:26.9]} 35... Rf8 {[%clk 0:00:29.6]} 36. Qe3 {[%clk 0:00:26.8]} 36... Kd8
{[%clk 0:00:18.7]} 37. Bf3 {[%clk 0:00:25.3]} 37... Qd7 {[%clk 0:00:18.7]} 38.
Rg3 {[%clk 0:00:22.4]} 38... g5 {[%clk 0:00:18.1]} 39. hxg5 {[%clk 0:00:21]}
39... hxg5 {[%clk 0:00:18.6]} 40. Qxg5+ {[%clk 0:00:21.4]} 40... Kc7 {[%clk
0:00:17.9]} 41. Qe3 {[%clk 0:00:13.6]} 41... Kb8 {[%clk 0:00:13.5]} 42. Qe4
{[%clk 0:00:13.8]} 42... Qd5 {[%clk 0:00:11.6]} 43. Qe3 {[%clk 0:00:10.2]} 43...
Qd8 {[%clk 0:00:11.2]} 44. Qe4 {[%clk 0:00:09.7]} 44... Qd5 {[%clk 0:00:11.4]}
45. Qg6 {[%clk 0:00:09.2]} 45... Qd7 {[%clk 0:00:09.8]} 46. Ke2 {[%clk
0:00:06.8]} 46... Qe7 {[%clk 0:00:08.8]} 47. Qe4 {[%clk 0:00:06.4]} 47... Rxf3
{[%clk 0:00:09]} 48. Rxf3 {[%clk 0:00:05.7]} 48... Qg7 {[%clk 0:00:08.5]} 49.
Rf6 {[%clk 0:00:05.5]} 49... Qd7 {[%clk 0:00:04.5]} 50. Qg4 {[%clk 0:00:04.4]}
50... Re8 {[%clk 0:00:04.6]} 51. Qg6 {[%clk 0:00:04.2]} 51... Qd5 {[%clk
0:00:04.7]} 52. Rf4 {[%clk 0:00:03.5]} 52... Qh1 {[%clk 0:00:03.8]} 53. Qxe8+
{[%clk 0:00:03.7]} 1-0

[Event "*** Titled Tuesday Blitz"]
[Site "Chess.com"]
[Date "2020.11.10"]
[Round "4"]
[White "geordie_derraugh"]
[Black "Ladislav1969"]
[Result "1-0"]
[WhiteElo "2456"]
[BlackElo "2276"]
[TimeControl "180+1"]
[EndTime "10:43:12 PST"]
[Termination "geordie_derraugh won on time"]

1. e4 {[%clk 0:03:00.9]} 1... c5 {[%clk 0:02:59.1]} 2. c3 {[%clk 0:02:58.6]}
2... e6 {[%clk 0:03:00]} 3. d4 {[%clk 0:02:58.3]} 3... d5 {[%clk 0:02:59.2]} 4.
exd5 {[%clk 0:02:57.2]} 4... exd5 {[%clk 0:02:58.9]} 5. Nf3 {[%clk 0:02:57.8]}
5... Nc6 {[%clk 0:02:59]} 6. Bd3 {[%clk 0:02:55.8]} 6... cxd4 {[%clk 0:02:57]}
7. cxd4 {[%clk 0:02:54.1]} 7... Bg4 {[%clk 0:02:54.2]} 8. O-O {[%clk 0:02:48.7]}
8... Be7 {[%clk 0:02:46.8]} 9. Be3 {[%clk 0:02:46.5]} 9... Nf6 {[%clk
0:02:43.5]} 10. Nc3 {[%clk 0:02:44.3]} 10... O-O {[%clk 0:02:41.9]} 11. Re1
{[%clk 0:02:43.5]} 11... Re8 {[%clk 0:02:39]} 12. h3 {[%clk 0:02:40]} 12... Bh5
{[%clk 0:02:37.9]} 13. g4 {[%clk 0:02:36.4]} 13... Bg6 {[%clk 0:02:37.9]} 14.
Ne5 {[%clk 0:02:35.1]} 14... Nxe5 {[%clk 0:02:30.5]} 15. dxe5 {[%clk 0:02:34.5]}
15... Ne4 {[%clk 0:02:25.5]} 16. Bxe4 {[%clk 0:02:21.3]} 16... dxe4 {[%clk
0:02:25.6]} 17. Qa4 {[%clk 0:02:19.6]} 17... Bf8 {[%clk 0:01:56.9]} 18. Rad1
{[%clk 0:02:12.2]} 18... Qc8 {[%clk 0:01:47.2]} 19. Bf4 {[%clk 0:02:05.5]} 19...
h5 {[%clk 0:01:46.4]} 20. Qd7 {[%clk 0:01:33.5]} 20... hxg4 {[%clk 0:01:42.4]}
21. hxg4 {[%clk 0:01:34.3]} 21... Qc4 {[%clk 0:01:30.7]} 22. Nxe4 {[%clk
0:01:22.4]} 22... Bxe4 {[%clk 0:01:24.5]} 23. Rd4 {[%clk 0:01:13.2]} 23... Bc6
{[%clk 0:01:07.2]} 24. Qxe8 {[%clk 0:00:43.3]} 24... Qxd4 {[%clk 0:01:07.2]} 25.
Qxa8 {[%clk 0:00:43]} 25... Qd5 {[%clk 0:01:07.3]} 26. Kf1 {[%clk 0:00:35.2]}
26... Qg2+ {[%clk 0:01:01.1]} 27. Ke2 {[%clk 0:00:34.7]} 27... Qf3+ {[%clk
0:01:01.3]} 28. Kf1 {[%clk 0:00:31.6]} 28... Qxf4 {[%clk 0:00:48.8]} 29. Qc8
{[%clk 0:00:25.9]} 29... Bf3 {[%clk 0:00:29]} 30. Qf5 {[%clk 0:00:22.4]} 30...
Qxg4 {[%clk 0:00:26.7]} 31. Qxg4 {[%clk 0:00:21]} 31... Bxg4 {[%clk 0:00:26.9]}
32. Rc1 {[%clk 0:00:19.2]} 32... Bf3 {[%clk 0:00:17]} 33. Rc3 {[%clk 0:00:18.6]}
33... Bc6 {[%clk 0:00:16.2]} 34. Ke2 {[%clk 0:00:17.5]} 34... Bb4 {[%clk
0:00:14.2]} 35. Rg3 {[%clk 0:00:16.6]} 35... g6 {[%clk 0:00:12.8]} 36. Ke3
{[%clk 0:00:16]} 36... Kg7 {[%clk 0:00:12.5]} 37. Kd4 {[%clk 0:00:16.1]} 37...
Ba5 {[%clk 0:00:11.2]} 38. f4 {[%clk 0:00:15.3]} 38... Bb6+ {[%clk 0:00:11.3]}
39. Kc4 {[%clk 0:00:15.7]} 39... Bf2 {[%clk 0:00:11.4]} 40. Rd3 {[%clk
0:00:12.6]} 40... a6 {[%clk 0:00:09.9]} 41. Rd8 {[%clk 0:00:11.9]} 41... Be3
{[%clk 0:00:06.6]} 42. f5 {[%clk 0:00:08.4]} 42... gxf5 {[%clk 0:00:06]} 43. Kd3
{[%clk 0:00:09.3]} 43... f4 {[%clk 0:00:06.4]} 44. Ke2 {[%clk 0:00:08.6]} 44...
Bb6 {[%clk 0:00:05.2]} 45. Rd6 {[%clk 0:00:07.9]} 45... f3+ {[%clk 0:00:05.5]}
46. Kf1 {[%clk 0:00:07.9]} 46... Bd5 {[%clk 0:00:05]} 47. Rxd5 {[%clk
0:00:07.4]} 47... f2 {[%clk 0:00:04.8]} 48. Rd6 {[%clk 0:00:06.8]} 48... Be3
{[%clk 0:00:04]} 49. b4 {[%clk 0:00:06.3]} 49... Kf8 {[%clk 0:00:03.2]} 50. a4
{[%clk 0:00:05.7]} 50... Ke7 {[%clk 0:00:03.3]} 51. b5 {[%clk 0:00:06.2]} 51...
axb5 {[%clk 0:00:02.7]} 52. axb5 {[%clk 0:00:07.1]} 52... b6 {[%clk 0:00:03]}
53. Rc6 {[%clk 0:00:06.8]} 53... Bc5 {[%clk 0:00:03]} 54. Rf6 {[%clk 0:00:06.2]}
54... Ke8 {[%clk 0:00:02.3]} 55. Rh6 {[%clk 0:00:04.6]} 55... Ke7 {[%clk
0:00:02.3]} 56. Ke2 {[%clk 0:00:05.1]} 56... Kd7 {[%clk 0:00:02.1]} 57. Rh7
{[%clk 0:00:04.3]} 57... Ke6 {[%clk 0:00:01.9]} 58. Rh5 {[%clk 0:00:04.9]} 1-0

[Event "*** Titled Tuesday Blitz"]
[Site "Chess.com"]
[Date "2020.11.10"]
[Round "4"]
[White "arminmusovic"]
[Black "Supernotar"]
[Result "0-1"]
[WhiteElo "2562"]
[BlackElo "2859"]
[TimeControl "180+1"]
[EndTime "10:43:16 PST"]
[Termination "Supernotar won by checkmate"]

1. e4 {[%clk 0:03:00.9]} 1... c6 {[%clk 0:02:58.8]} 2. d4 {[%clk 0:02:55.4]}
2... d5 {[%clk 0:02:59.7]} 3. exd5 {[%clk 0:02:55.8]} 3... cxd5 {[%clk
0:02:59.2]} 4. c4 {[%clk 0:02:56.5]} 4... Nf6 {[%clk 0:02:58.8]} 5. Nc3 {[%clk
0:02:57]} 5... e6 {[%clk 0:02:57.5]} 6. Nf3 {[%clk 0:02:56.6]} 6... Be7 {[%clk
0:02:57.4]} 7. Bd3 {[%clk 0:02:54]} 7... O-O {[%clk 0:02:56.8]} 8. O-O {[%clk
0:02:53.9]} 8... dxc4 {[%clk 0:02:56.4]} 9. Bxc4 {[%clk 0:02:53.8]} 9... a6
{[%clk 0:02:56.1]} 10. a4 {[%clk 0:02:53.9]} 10... Nc6 {[%clk 0:02:55.8]} 11.
Re1 {[%clk 0:02:53.8]} 11... Nb4 {[%clk 0:02:55.1]} 12. h3 {[%clk 0:02:50.4]}
12... b6 {[%clk 0:02:53.3]} 13. Bg5 {[%clk 0:02:40.9]} 13... Bb7 {[%clk
0:02:46.2]} 14. Ne5 {[%clk 0:02:39.9]} 14... Nfd5 {[%clk 0:02:42.4]} 15. Bd2
{[%clk 0:02:27.3]} 15... Rc8 {[%clk 0:02:38.5]} 16. Bf1 {[%clk 0:02:23.4]} 16...
Bf6 {[%clk 0:02:30.7]} 17. Rc1 {[%clk 0:02:15.4]} 17... g6 {[%clk 0:02:22.7]}
18. Bh6 {[%clk 0:02:08.6]} 18... Bg7 {[%clk 0:02:19.7]} 19. Qd2 {[%clk
0:02:07.2]} 19... Bxh6 {[%clk 0:01:57]} 20. Qxh6 {[%clk 0:02:06.4]} 20... Nxc3
{[%clk 0:01:56.1]} 21. bxc3 {[%clk 0:01:53.8]} 21... Na2 {[%clk 0:01:51.8]} 22.
Rcd1 {[%clk 0:01:14.2]} 22... Nxc3 {[%clk 0:01:47.2]} 23. Rd3 {[%clk 0:01:12.2]}
23... Nd5 {[%clk 0:01:45.4]} 24. h4 {[%clk 0:01:06.1]} 24... Rc3 {[%clk
0:01:37.9]} 25. Rc1 {[%clk 0:00:58.8]} 25... Rxc1 {[%clk 0:01:30]} 26. Qxc1
{[%clk 0:00:57.5]} 26... Qxh4 {[%clk 0:01:29.8]} 27. a5 {[%clk 0:00:50.2]} 27...
bxa5 {[%clk 0:01:25.3]} 28. Qc5 {[%clk 0:00:48.5]} 28... Ba8 {[%clk 0:01:17.5]}
29. Rh3 {[%clk 0:00:45.8]} 29... Qe7 {[%clk 0:01:11.7]} 30. Qxa5 {[%clk
0:00:42.7]} 30... Nf4 {[%clk 0:01:06.4]} 31. Rg3 {[%clk 0:00:35.7]} 31... Rd8
{[%clk 0:00:51]} 32. Qxa6 {[%clk 0:00:35.3]} 32... Bd5 {[%clk 0:00:47.5]} 33.
Qa5 {[%clk 0:00:28.7]} 33... Kg7 {[%clk 0:00:41.4]} 34. Ng4 {[%clk 0:00:27.3]}
34... h5 {[%clk 0:00:39.1]} 35. Ne3 {[%clk 0:00:27.1]} 35... h4 {[%clk
0:00:34.7]} 36. Rg4 {[%clk 0:00:26.8]} 36... g5 {[%clk 0:00:28.2]} 37. Bc4
{[%clk 0:00:23.7]} 37... Bxc4 {[%clk 0:00:24.2]} 38. Rxg5+ {[%clk 0:00:19.2]}
38... Kh7 {[%clk 0:00:22.1]} 39. Nxc4 {[%clk 0:00:18.2]} 39... f5 {[%clk
0:00:19.8]} 40. Rxf5 {[%clk 0:00:12.5]} 40... exf5 {[%clk 0:00:19.8]} 41. Qxf5+
{[%clk 0:00:13.4]} 41... Ng6 {[%clk 0:00:18]} 42. Ne5 {[%clk 0:00:13.7]} 42...
Rd6 {[%clk 0:00:14.6]} 43. Nf7 {[%clk 0:00:10.6]} 43... Rf6 {[%clk 0:00:13.3]}
44. Ng5+ {[%clk 0:00:10.7]} 44... Kg7 {[%clk 0:00:13.5]} 45. Qa5 {[%clk
0:00:10.2]} 45... h3 {[%clk 0:00:11.3]} 46. Nxh3 {[%clk 0:00:09]} 46... Qd6
{[%clk 0:00:10.5]} 47. g3 {[%clk 0:00:07.4]} 47... Rf7 {[%clk 0:00:09.2]} 48.
Qc3 {[%clk 0:00:06.9]} 48... Qd5 {[%clk 0:00:08.5]} 49. Kh2 {[%clk 0:00:04.2]}
49... Rd7 {[%clk 0:00:07.3]} 50. Qc8 {[%clk 0:00:01.2]} 50... Qxd4 {[%clk
0:00:05.9]} 51. Ng5 {[%clk 0:00:02.1]} 51... Qxf2+ {[%clk 0:00:05.7]} 52. Kh3
{[%clk 0:00:02.1]} 52... Qf5+ {[%clk 0:00:05.8]} 53. g4 {[%clk 0:00:02.2]} 53...
Rd3+ {[%clk 0:00:05.2]} 54. Kg2 {[%clk 0:00:02.4]} 54... Qd5+ {[%clk 0:00:04.9]}
55. Kh2 {[%clk 0:00:01.9]} 55... Rd2+ {[%clk 0:00:04.9]} 56. Kg3 {[%clk
0:00:02.3]} 56... Qg2# {[%clk 0:00:04.7]} 0-1

[Event "*** Titled Tuesday Blitz"]
[Site "Chess.com"]
[Date "2020.11.10"]
[Round "4"]
[White "tteshan"]
[Black "MokshanovAlexey"]
[Result "0-1"]
[WhiteElo "2369"]
[BlackElo "2617"]
[TimeControl "180+1"]
[EndTime "10:43:17 PST"]
[Termination "MokshanovAlexey won by resignation"]

1. d4 {[%clk 0:03:00.9]} 1... d5 {[%clk 0:02:59.7]} 2. c4 {[%clk 0:03:01]} 2...
e6 {[%clk 0:02:59.8]} 3. Nc3 {[%clk 0:03:01.1]} 3... Nf6 {[%clk 0:02:59.8]} 4.
cxd5 {[%clk 0:03:00.4]} 4... exd5 {[%clk 0:02:59.7]} 5. Bg5 {[%clk 0:02:59.2]}
5... c6 {[%clk 0:03:00]} 6. e3 {[%clk 0:02:58.2]} 6... Be7 {[%clk 0:03:00.3]} 7.
Bd3 {[%clk 0:02:52.7]} 7... O-O {[%clk 0:03:00.1]} 8. Qc2 {[%clk 0:02:52.8]}
8... Nbd7 {[%clk 0:03:00.2]} 9. Nge2 {[%clk 0:02:52.9]} 9... Re8 {[%clk
0:03:00.6]} 10. O-O {[%clk 0:02:52.9]} 10... Nf8 {[%clk 0:03:00.1]} 11. Rad1
{[%clk 0:02:49.6]} 11... Be6 {[%clk 0:03:00.2]} 12. f3 {[%clk 0:02:48.5]} 12...
Ng6 {[%clk 0:02:56.9]} 13. h3 {[%clk 0:02:38.5]} 13... Rc8 {[%clk 0:02:48]} 14.
Kh1 {[%clk 0:02:33]} 14... a6 {[%clk 0:02:37.4]} 15. e4 {[%clk 0:02:30.5]} 15...
dxe4 {[%clk 0:02:37.2]} 16. fxe4 {[%clk 0:02:27.9]} 16... Nh5 {[%clk 0:02:34.5]}
17. Bxe7 {[%clk 0:02:24.8]} 17... Qxe7 {[%clk 0:02:35.4]} 18. Qd2 {[%clk
0:02:07.5]} 18... c5 {[%clk 0:02:28.3]} 19. d5 {[%clk 0:02:03.2]} 19... Bd7
{[%clk 0:02:27.6]} 20. Qe3 {[%clk 0:01:54.2]} 20... Qh4 {[%clk 0:02:16.1]} 21.
Bc2 {[%clk 0:01:36.3]} 21... Ne5 {[%clk 0:02:09.3]} 22. Qf2 {[%clk 0:01:31.9]}
22... Qg5 {[%clk 0:01:51.3]} 23. Nb1 {[%clk 0:01:07.5]} 23... Bb5 {[%clk
0:01:40.7]} 24. Nbc3 {[%clk 0:00:59.7]} 24... Bd7 {[%clk 0:01:23.6]} 25. Nb1
{[%clk 0:00:59.4]} 25... Qh6 {[%clk 0:01:22.3]} 26. Nd2 {[%clk 0:00:55.2]} 26...
Nf6 {[%clk 0:01:07.9]} 27. Qf4 {[%clk 0:00:43.6]} 27... Qg6 {[%clk 0:01:00.8]}
28. Ng3 {[%clk 0:00:39.7]} 28... h6 {[%clk 0:00:48.7]} 29. Nf3 {[%clk
0:00:32.3]} 29... Nh5 {[%clk 0:00:35.9]} 30. Nxh5 {[%clk 0:00:29.7]} 30... Qxh5
{[%clk 0:00:35.8]} 31. Nxe5 {[%clk 0:00:28.3]} 31... Rxe5 {[%clk 0:00:36]} 32.
Rd3 {[%clk 0:00:23.3]} 32... Rce8 {[%clk 0:00:32.6]} 33. Rdf3 {[%clk 0:00:19]}
33... f6 {[%clk 0:00:28.4]} 34. g4 {[%clk 0:00:17]} 34... Qg6 {[%clk 0:00:25.3]}
35. Kh2 {[%clk 0:00:14.1]} 35... h5 {[%clk 0:00:23]} 36. gxh5 {[%clk 0:00:08.4]}
36... Rxh5 {[%clk 0:00:23.9]} 37. Rg1 {[%clk 0:00:07.4]} 37... Qh7 {[%clk
0:00:21]} 38. Rgg3 {[%clk 0:00:05.5]} 38... Kh8 {[%clk 0:00:17.5]} 39. Bd3
{[%clk 0:00:05.5]} 39... Ree5 {[%clk 0:00:16.7]} 40. Qe3 {[%clk 0:00:05]} 40...
b6 {[%clk 0:00:14.3]} 41. a4 {[%clk 0:00:04.7]} 41... a5 {[%clk 0:00:13.9]} 42.
b3 {[%clk 0:00:04.6]} 42... Rh4 {[%clk 0:00:13.5]} 43. Qf2 {[%clk 0:00:03.3]}
43... Reh5 {[%clk 0:00:12.3]} 44. Qg2 {[%clk 0:00:03.8]} 44... Qh6 {[%clk
0:00:11.5]} 45. d6 {[%clk 0:00:03.4]} 45... Qc1 {[%clk 0:00:09.8]} 46. Rxf6
{[%clk 0:00:03.1]} 46... Rxh3+ {[%clk 0:00:08.7]} 47. Rxh3 {[%clk 0:00:02.9]}
47... Rxh3+ {[%clk 0:00:09.6]} 48. Qxh3+ {[%clk 0:00:03.1]} 48... Bxh3 {[%clk
0:00:10.3]} 49. Rf8+ {[%clk 0:00:03.5]} 49... Kh7 {[%clk 0:00:10.8]} 50. e5+
{[%clk 0:00:04.1]} 50... g6 {[%clk 0:00:10.1]} 51. Rf7+ {[%clk 0:00:04.1]} 51...
Kh6 {[%clk 0:00:10]} 52. Rf8 {[%clk 0:00:04.1]} 52... Qd2+ {[%clk 0:00:09.3]}
53. Kxh3 {[%clk 0:00:04.1]} 53... Qxd3+ {[%clk 0:00:09.7]} 54. Kg4 {[%clk
0:00:04.2]} 54... Qe4+ {[%clk 0:00:09.6]} 55. Kg3 {[%clk 0:00:04.5]} 55... Qxe5+
{[%clk 0:00:09.7]} 56. Kh4 {[%clk 0:00:04.7]} 56... Qh2+ {[%clk 0:00:09.3]} 57.
Kg4 {[%clk 0:00:04.7]} 57... Qxd6 {[%clk 0:00:09.8]} 58. Rh8+ {[%clk 0:00:04.6]}
58... Kg7 {[%clk 0:00:09.9]} 59. Rh3 {[%clk 0:00:05.3]} 59... Qe6+ {[%clk
0:00:09.9]} 60. Kg3 {[%clk 0:00:05.4]} 60... Qxb3+ {[%clk 0:00:10.1]} 61. Kg4
{[%clk 0:00:05.6]} 61... Qxh3+ {[%clk 0:00:11]} 0-1